bitfinex/quotes_ETHUSD_20250414
["timestamp","ask_amount","ask_price","bid_price","bid_amount"]
[1744590374814,0.06172808,1616.2,1615.7,4.95135]
[1744590375419,0.06172808,1616.2,1615.8,4.95098]
[1744590375738,0.06172808,1616.4,1616.0,4.95032]
[1744590376110,1.60542808,1616.5,1616.2,4.94983]
[1744590376310,2.53945581,1616.8,1616.1,4.95015]
[1744590376618,2.53945581,1616.8,1615.9,1.5275]
[1744590376619,4.94927,1616.4,1615.9,1.5275]
[1744590376800,0.06172808,1616.3,1615.6,4.5275]
[1744590377001,4.94969,1616.3,1615.7,9.9025]
[1744590377215,0.06172808,1616.2,1615.8,4.9511]
[1744590377533,0.06172808,1616.3,1615.8,4.95083]
[1744590377734,5.01143808,1616.3,1615.7,9.90269]
[1744590377924,0.06172808,1616.3,1615.9,4.95075]
[1744590378303,4.94976,1616.3,1615.7,4.95138]
[1744590378500,0.06172808,1616.2,1615.7,4.95138]
[1744590378699,0.06172808,1616.2,1615.7,4.95123]
[1744590379149,4.95021,1616.1,1615.5,4.95184]
[1744590379297,0.06172808,1616.0,1615.5,4.95184]
[1744590379498,0.06172808,1616.0,1615.7,4.95141]
[1744590379745,0.06172808,1616.2,1615.5,4.95202]
[1744590379909,5.01170808,1616.2,1615.7,4.95128]
[1744590380107,0.06172808,1616.2,1615.8,4.95109]
[1744590380402,0.06172808,1616.1,1615.7,4.95132]
[1744590380623,0.06172808,1616.2,1615.7,4.95135]
[1744590380824,5.01165808,1616.2,1615.7,4.95129]
[1744590381022,4.95021,1616.1,1615.6,4.95167]
[1744590381222,0.06172808,1616.0,1615.6,4.95167]
[1744590381422,0.06172808,1616.1,1615.6,4.95167]
[1744590381640,0.06172808,1616.1,1615.7,4.95126]
[1744590382050,0.06172808,1616.1,1615.7,9.9025]
[1744590382250,0.06172808,1616.1,1615.8,4.95101]
[1744590382545,0.06172808,1616.2,1615.7,4.95138]
[1744590382749,0.06172808,1616.2,1615.7,9.90263]
[1744590383348,0.06172808,1616.2,1615.8,4.9511]
[1744590383644,0.06172808,1616.2,1615.4,18.69132]
[1744590383645,5.01181808,1616.2,1615.6,4.95164]
[1744590383947,0.06172808,1616.2,1615.8,4.95099]
[1744590384332,0.06172808,1616.2,1615.8,9.90193]
[1744590384743,0.06172808,1616.2,1615.4,13.739]
[1744590384744,0.06172808,1616.2,1615.7,4.95136]
[1744590384914,0.06172808,1616.2,1615.7,9.90267]
[1744590385545,0.06172808,1616.2,1615.7,4.95131]
[1744590385720,5.01164808,1616.2,1615.7,4.95131]
[1744590385921,5.01164808,1616.2,1615.7,9.90257]
[1744590386123,5.01164808,1616.2,1615.7,4.95126]
[1744590386552,0.06172808,1616.2,1615.5,4.95202]
[1744590386711,0.06172808,1616.2,1615.4,4.95221]
[1744590386911,4.95053,1616.0,1615.4,4.95216]
[1744590387246,0.06172808,1615.9,1615.5,4.95191]
[1744590387546,0.06172808,1615.9,1615.6,4.95162]
[1744590387749,0.06172808,1615.9,1615.6,4.95156]
[1744590388046,9.89992,1616.2,1615.6,4.95156]
[1744590388047,5.01196808,1616.1,1615.6,4.95156]
[1744590388250,6.00815789,1616.1,1615.6,9.90315]
[1744590388434,0.06172808,1616.1,1615.7,4.95136]
[1744590388745,0.06172808,1616.1,1615.8,4.95091]
[1744590388950,0.06172808,1616.2,1615.8,9.90191]
[1744590389109,0.06172808,1616.2,1615.9,4.95078]
[1744590389953,0.06172808,1616.2,1615.9,9.90147]
[1744590390158,0.06172808,1616.2,1615.8,4.95105]
[1744590390359,5.01169808,1616.2,1615.7,4.95129]
[1744590390657,5.01169808,1616.2,1615.4,4.95233]
[1744590390658,0.06172808,1616.2,1615.8,4.95108]
[1744590390844,0.06172808,1616.2,1615.9,9.90147]
[1744590391061,0.06172808,1616.2,1615.8,4.95109]
[1744590391244,4.95085,1615.9,1615.4,4.95225]
[1744590391447,0.06172808,1615.8,1615.4,9.90444]
[1744590391646,0.06172808,1615.8,1615.4,4.95219]
[1744590392360,1.6264,1615.7,1615.3,4.95252]
[1744590392562,5.01284808,1615.8,1615.1,8.50318]
[1744590392563,0.06172808,1615.8,1615.1,8.50318]
[1744590392854,0.06172808,1616.1,1615.7,4.95141]
[1744590393167,3.72554289,1616.1,1615.4,0.33448213]
[1744590393465,4.95202,1615.5,1615.4,0.33448213]
[1744590393622,0.06172808,1615.5,1615.4,0.33448213]
[1744590393821,1.6264,1615.7,1615.4,0.33448213]
[1744590393822,1.68812808,1615.7,1615.4,5.28663213]
[1744590394021,1.6264,1616.0,1615.6,4.95151]
[1744590394326,0.06172808,1616.2,1615.4,0.55]
[1744590394525,0.06172808,1616.2,1615.9,4.95065]
[1744590394726,4.95021,1616.1,1615.6,4.95169]
[1744590394941,0.06172808,1616.0,1615.6,4.95169]
[1744590395127,0.06172808,1616.0,1615.5,4.95189]
[1744590395327,0.06172808,1616.0,1615.6,4.95144]
[1744590395528,0.06172808,1616.1,1615.7,9.90267]
[1744590395729,0.06172808,1616.1,1615.7,4.95128]
[1744590396238,0.06172808,1616.1,1615.7,4.95127]
[1744590396443,5.01164808,1616.2,1615.7,4.95127]
[1744590397434,5.01164808,1616.2,1615.6,4.95169]
[1744590397435,1.68812808,1616.3,1615.9,4.95064]
[1744590397646,1.68812808,1616.3,1615.9,9.90132]
[1744590398082,1.5467,1616.6,1616.1,4.95005]
[1744590398262,0.06172808,1616.5,1615.9,4.9505]
[1744590398437,0.06172808,1616.5,1616.0,4.95038]
[1744590399140,4.95014,1616.2,1615.6,4.95155]
[1744590399336,4.95069,1616.0,1615.7,0.33507146]
[1744590399544,0.06172808,1615.9,1615.7,0.33507146]
[1744590399737,6.55863808,1616.1,1615.7,0.33507146]
[1744590400451,1.60842808,1616.1,1615.6,9.9032]
[1744590400660,1.60842808,1616.1,1615.6,9.90315]
[1744590400840,1.60842808,1616.1,1615.7,4.95139]
[1744590401042,1.5467,1616.1,1615.7,4.95129]
[1744590401376,1.5467,1616.1,1615.8,0.33503259]
[1744590401575,1.5467,1616.1,1615.8,5.28601259]
[1744590401879,7.94928,1616.4,1616.0,4.95039]
[1744590401880,1.5467,1616.4,1616.0,4.95039]
[1744590402172,5.01132808,1616.3,1615.8,4.95109]
[1744590402376,5.01132808,1616.3,1615.7,4.95137]
[1744590402377,0.06172808,1616.3,1616.0,4.95034]
[1744590402578,0.06172808,1616.3,1615.7,4.9512]
[1744590402781,5.01131808,1616.3,1615.7,4.9512]
[1744590403078,4.95021,1616.1,1615.5,4.95191]
[1744590403267,0.06172808,1616.1,1615.7,4.9513]
[1744590403587,0.06172808,1616.1,1615.7,9.90257]
[1744590403754,0.06172808,1616.1,1615.8,5.28616771]
[1744590404083,4.94964,1616.3,1615.8,5.28616771]
[1744590404084,1.5467,1616.4,1615.8,0.33507771]
[1744590404378,1.60842808,1616.4,1615.9,4.95063]
[1744590404753,6.55781808,1616.4,1616.0,0.33507771]
[1744590404970,4.94999,1616.2,1616.0,0.33507771]
[1744590405169,5.01190808,1616.1,1616.0,0.33507771]
[1744590405405,0.06172808,1616.2,1615.7,4.95126]
[1744590405700,0.06172808,1616.2,1615.7,9.90253]
[1744590406200,7.64668181,1616.4,1615.7,9.90253]
[1744590406201,1.60842808,1616.4,1615.8,0.06188099]
[1744590406375,1.60842808,1616.4,1616.0,4.95031]
[1744590406573,6.49475,1616.8,1616.2,4.94968]
[1744590406759,5.01019808,1616.7,1616.1,5.28497293]
[1744590406964,3.0,1616.6,1616.1,5.28493293]
[1744590407164,0.06172808,1616.5,1616.1,0.33487293]
[1744590407380,0.06172808,1616.7,1616.2,4.94974]
[1744590407612,0.06172808,1616.7,1616.3,4.94944]
[1744590407902,0.06172808,1616.7,1616.5,4.94892]
[1744590408086,1.60842808,1616.8,1616.4,4.94925]
[1744590408294,1.55842808,1616.8,1616.4,4.94912]
[1744590408632,0.06172808,1617.0,1616.6,4.94846]
[1744590408781,0.06172808,1617.1,1616.6,4.94846]
[1744590408978,0.06172808,1617.1,1616.7,4.94832]
[1744590409314,4.07250164,1617.4,1616.8,0.06184898]
[1744590409613,4.07250164,1617.4,1617.2,4.94664]
[1744590409800,4.07250164,1617.4,1617.3,4.94651]
[1744590410420,0.02,1617.4,1617.3,4.94651]
[1744590411122,0.02,1617.4,1617.2,4.94664]
[1744590411324,0.02,1617.4,1617.0,1.5784]
[1744590411325,0.08172808,1617.4,1617.1,4.94708]
[1744590411716,0.64818105,1617.4,1616.9,9.89527]
[1744590411919,0.08172808,1617.4,1617.1,4.947]
[1744590412152,0.08172808,1617.4,1617.1,9.89401]
[1744590412454,0.08172808,1617.4,1617.1,4.947]
[1744590412628,0.02,1617.4,1617.2,4.9468]
[1744590413162,0.02,1617.4,1617.3,4.94651]
[1744590413465,6.55185707,1618.2,1617.5,6.52418]
[1744590413666,9.28673638,1618.7,1618.1,4.94407]
[1744590413667,0.02,1618.4,1618.1,4.94407]
[1744590413962,0.02,1618.4,1618.3,4.94345]
[1744590414331,0.02,1618.4,1618.2,4.94364]
[1744590414519,0.02,1618.4,1618.1,4.94391]
[1744590414722,0.02,1618.4,1618.2,4.94375]
[1744590414933,0.02,1618.4,1618.1,4.94391]
[1744590415254,1.5503,1618.4,1617.9,4.9446]
[1744590415451,1.5503,1618.4,1618.0,4.94433]
[1744590415631,6.49359,1618.4,1617.8,4.94478]
[1744590415955,6.49359,1618.4,1617.5,7.94583]
[1744590415956,1.5303,1618.1,1617.5,4.94587]
[1744590416190,1.5303,1618.1,1617.6,4.94558]
[1744590416988,1.5303,1618.1,1617.7,4.94504]
[1744590417191,1.5303,1618.1,1617.8,4.94498]
[1744590417491,1.5303,1618.1,1617.8,9.88962]
[1744590417790,1.5303,1618.1,1617.7,4.94528]
[1744590417944,1.5303,1618.1,1617.8,4.94497]
[1744590418454,1.5303,1618.1,1617.6,4.94556]
[1744590419365,4.94456,1618.0,1617.4,4.94595]
[1744590419563,10.384166,1617.9,1617.3,4.94648]
[1744590419906,4.94481,1617.9,1617.3,4.9464]
[1744590420051,4.94441,1618.0,1617.4,9.8922]
[1744590420246,4.94441,1618.0,1617.4,4.94601]
[1744590420247,4.94483,1617.9,1617.4,4.94601]
[1744590420487,1.5303,1618.1,1617.5,0.06181983]
[1744590420651,1.5303,1618.1,1617.8,4.94472]
[1744590420847,1.5503,1618.4,1618.3,4.94345]
[1744590421048,0.02,1618.4,1618.3,4.94345]
[1744590421252,0.02,1618.4,1618.3,5.49345]
[1744590421553,1.5303,1619.3,1618.6,6.52066]
[1744590421749,4.94099,1619.2,1618.7,4.94207]
[1744590422055,0.494099,1619.1,1618.7,4.94202]
[1744590422294,4.94089,1619.2,1618.3,6.52183]
[1744590422563,1.5303,1619.3,1618.5,4.94269]
[1744590422760,4.94109,1619.1,1618.5,4.94261]
[1744590422962,4.94091,1619.2,1618.6,4.94242]
[1744590423277,4.94104,1619.1,1618.6,4.9424]
[1744590423612,5.929235,1619.1,1618.6,4.9424]
[1744590423798,0.988195,1619.1,1618.7,4.94214]
[1744590424100,6.4707,1619.3,1618.8,4.94186]
[1744590424297,1.5303,1619.3,1618.9,4.9416]
[1744590424500,0.02,1619.4,1619.0,4.9413]
[1744590424686,0.02,1619.4,1619.1,0.0617557]
[1744590424869,0.02,1619.4,1619.2,4.94057]
[1744590425073,0.02,1619.4,1619.3,4.9404]
[1744590425257,0.02,1619.4,1618.8,1.6104]
[1744590425457,0.02,1619.4,1618.9,4.9415]
[1744590425661,0.02,1619.4,1619.0,4.94116]
[1744590425855,0.02,1619.4,1619.2,4.94055]
[1744590426102,0.02,1619.4,1618.9,4.94148]
[1744590426363,0.02,1619.4,1619.0,4.9412]
[1744590426591,0.02,1619.4,1618.9,4.9415]
[1744590426900,0.02,1619.4,1618.9,9.8829]
[1744590427100,0.02,1619.4,1618.9,4.9414]
[1744590427410,0.02,1619.4,1619.0,4.94131]
[1744590427699,0.02,1619.4,1619.0,4.9411]
[1744590427904,0.02,1619.4,1619.2,4.94055]
[1744590428104,0.02,1619.4,1619.3,4.9404]
[1744590428710,0.02,1619.4,1619.2,4.94055]
[1744590429009,0.02,1619.4,1619.0,16.8983]
[1744590429192,0.02,1619.4,1619.0,11.957]
[1744590429394,0.02,1619.4,1618.5,3.59744757]
[1744590429395,1.5885,1619.3,1618.6,4.94254]
[1744590429692,1.5885,1619.3,1618.9,4.94157]
[1744590429893,0.02,1619.4,1618.9,5.49162]
[1744590430092,0.02,1619.4,1619.3,4.9404]
[1744590430998,0.02,1619.4,1619.3,5.4904]
[1744590431812,0.02,1619.4,1619.3,4.9404]
[1744590432714,0.02,1619.4,1619.3,5.00214283]
[1744590432912,0.3971661,1620.0,1619.8,4.9386]
[1744590433074,0.3971661,1620.0,1619.9,4.93857]
[1744590433975,0.3971661,1620.0,1619.6,4.93925]
[1744590434625,0.3971661,1620.0,1619.7,4.93902]
[1744590434774,0.3971661,1620.0,1619.8,4.93873]
[1744590434972,0.3971661,1620.0,1619.9,5.00028953]
[1744590435223,0.3971661,1620.0,1619.9,4.93857]
[1744590436015,0.3971661,1620.0,1619.9,5.55028845]
[1744590436808,0.6387,1620.2,1620.0,4.93815]
[1744590436977,4.93822,1620.1,1619.5,18.12251]
[1744590437178,4.93858,1619.9,1619.5,1.5549]
[1744590437377,4.93856,1620.0,1619.5,6.49455]
[1744590437677,4.93872,1619.9,1619.5,1.5549]
[1744590437893,4.93872,1619.9,1619.4,4.93988]
[1744590438096,1.5885,1620.1,1619.6,4.9392]
[1744590438312,0.6387,1620.2,1619.8,2.0522]
[1744590438478,0.6387,1620.2,1620.1,4.93796]
[1744590438690,0.6387,1620.2,1619.9,4.93854]
[1744590439199,0.6387,1620.2,1619.9,9.87683]
[1744590439405,5.57638,1620.2,1619.8,1.5022]
[1744590439710,5.57638,1620.2,1619.6,16.56448]
[1744590439913,5.57638,1620.2,1619.7,4.939]
[1744590440426,0.6387,1620.2,1619.6,11.625]
[1744590440633,0.6387,1620.2,1619.6,16.56447]
[1744590440925,4.9381,1620.1,1619.6,16.56447]
[1744590441103,4.93827,1620.0,1619.6,11.625]
[1744590441306,4.93858,1619.9,1619.6,11.625]
[1744590441637,0.6387,1620.2,1619.8,4.93865]
[1744590441836,0.6387,1620.2,1619.9,0.06172045]
[1744590442190,0.6387,1620.2,1620.0,4.93824]
[1744590442617,1.5393,1620.1,1619.3,4.94024]
[1744590442828,1.5393,1620.1,1619.7,4.93912]
[1744590443032,0.6387,1620.2,1619.7,0.55]
[1744590443195,0.6387,1620.2,1619.9,4.93846]
[1744590443394,0.6387,1620.2,1619.9,4.93841]
[1744590443733,0.6387,1620.2,1620.0,4.93825]
[1744590443892,0.6387,1620.2,1619.9,4.93841]
[1744590444098,0.6387,1620.2,1619.9,9.87682]
[1744590444306,0.6387,1620.2,1619.8,4.93883]
[1744590444633,0.6387,1620.2,1619.6,2.51277299]
[1744590444634,0.6387,1620.2,1619.9,5.00010866]
[1744590444833,0.6387,1620.2,1619.9,0.06171866]
[1744590445031,0.6387,1620.2,1620.1,4.93796]
[1744590445395,0.6387,1620.2,1620.1,5.48796]
[1744590445735,0.6387,1620.2,1620.1,10.4502702]
[1744590445978,0.6387,1620.2,1620.1,6.44016]
[1744590446457,0.6387,1620.2,1620.1,6.99016]
[1744590447094,0.6387,1620.2,1620.1,9.99016]
[1744590447690,0.6387,1620.2,1620.1,9.44016]
[1744590447918,0.6387,1620.2,1620.1,9.50186654]
[1744590448142,0.6387,1620.2,1620.1,10.50768502]
[1744590448348,2.0893,1621.3,1620.9,4.93529]
[1744590448505,7.02375,1621.3,1620.8,4.93579]
[1744590448692,7.02375,1621.3,1620.8,9.87146]
[1744590448891,0.55,1621.3,1621.1,4.93489]
[1744590449206,0.55,1621.3,1620.8,0.55]
[1744590449207,0.55,1621.3,1621.0,4.93511]
[1744590449794,0.55,1621.3,1621.0,9.87022]
[1744590450340,0.55,1621.3,1620.9,4.93549]
[1744590450540,0.55,1621.3,1620.8,5.4858]
[1744590450696,4.93467,1621.2,1620.7,4.9361]
[1744590451043,0.55,1621.3,1620.6,16.23236]
[1744590451044,6.47426,1621.1,1620.6,16.23236]
[1744590451391,1.5393,1621.1,1620.8,4.93581]
[1744590451597,0.55,1621.3,1621.2,4.93461]
[1744590451908,0.02,1621.4,1621.3,4.93431]
[1744590452297,0.02,1621.4,1621.2,4.93443]
[1744590452926,0.02,1621.4,1621.0,4.93515]
[1744590453232,4.95402,1621.4,1620.9,6.43756]
[1744590453420,9.88825,1621.4,1620.9,4.93536]
[1744590453598,1.5306,1621.3,1620.8,4.93563]
[1744590453846,1.5306,1621.3,1620.9,9.93241852]
[1744590454024,1.5306,1621.3,1621.0,4.93503]
[1744590454258,6.46499,1621.3,1620.8,4.93558]
[1744590454461,1.5306,1621.3,1620.9,5.48548]
[1744590454761,1.5306,1621.3,1621.0,4.93519]
[1744590454977,1.5306,1621.3,1620.9,4.93549]
[1744590455264,0.02,1621.4,1620.8,1.01337921]
[1744590455565,0.02,1621.4,1621.3,4.93431]
[1744590455865,0.02,1621.4,1621.3,5.5459714]
[1744590456238,0.3971661,1621.6,1621.5,5.4837]
[1744590457481,0.3971661,1621.6,1621.5,5.94610795]
[1744590457668,4.951,1622.4,1621.9,4.93236]
[1744590457969,4.93157,1622.2,1621.8,4.93266]
[1744590458158,9.86336,1622.2,1621.7,4.93307]
[1744590458328,0.02,1622.4,1621.9,0.55]
[1744590458674,0.02,1622.4,1622.3,4.93127]
[1744590458873,0.02,1622.4,1622.2,4.93141]
[1744590459028,0.02,1622.4,1622.3,4.93127]
[1744590459228,0.02,1622.4,1622.2,4.93145]
[1744590459565,0.02,1622.4,1622.1,4.93187]
[1744590459724,0.02,1622.4,1622.2,4.93143]
[1744590460060,0.02,1622.4,1622.2,4.93146]
[1744590460266,0.02,1622.4,1622.1,4.93167]
[1744590460448,0.02,1622.4,1622.0,4.93214]
[1744590460658,6.46214,1622.3,1621.7,4.93295]
[1744590460849,4.93232,1622.0,1621.4,4.93376]
[1744590461163,7.110094,1622.3,1621.8,4.93267]
[1744590461381,1.5306,1622.3,1621.7,4.93296]
[1744590461545,4.9318,1622.2,1621.7,4.93296]
[1744590462089,1.5306,1622.3,1621.4,4.93398]
[1744590462375,4.93294,1621.8,1621.3,6.57138]
[1744590462878,6.46354,1621.8,1621.3,6.57127]
[1744590463174,1.5306,1621.8,1621.4,4.93399]
[1744590463386,1.5306,1623.3,1622.4,1.6371]
[1744590463544,4.92927,1623.0,1622.5,4.93053]
[1744590463737,4.9299,1622.8,1622.1,1.6371]
[1744590463967,4.9299,1622.8,1621.6,4.93337]
[1744590463968,4.92975,1622.8,1622.3,4.93115]
[1744590464283,1.5306,1622.9,1622.6,4.93026]
[1744590464484,1.5306,1622.9,1622.6,4.93032]
[1744590464778,1.9277661,1623.2,1622.7,4.93002]
[1744590464955,4.92895,1623.1,1622.5,6.56761]
[1744590465283,4.92916,1623.0,1622.5,4.93051]
[1744590465451,4.92916,1623.0,1622.5,9.861]
[1744590465783,0.3971661,1623.2,1623.1,4.92883]
[1744590466079,0.3971661,1623.2,1623.0,9.85796]
[1744590466279,0.3971661,1623.2,1622.9,4.92929]
[1744590466679,5.3258761,1623.2,1622.7,4.92987]
[1744590466850,4.9289,1623.1,1622.6,4.93029]
[1744590467181,4.92915,1623.0,1622.6,4.9303]
[1744590467340,4.92947,1622.9,1622.4,4.93093]
[1744590467543,4.93005,1622.7,1622.3,4.93125]
[1744590467745,9.86035,1622.7,1622.2,16.61856]
[1744590467947,9.86035,1622.7,1622.1,4.9316]
[1744590467948,4.93042,1622.6,1622.1,4.9316]
[1744590468145,1.139095,1622.7,1621.9,4.93246]
[1744590468146,4.93109,1622.4,1621.9,4.93246]
[1744590468343,6.59293,1622.3,1621.8,4.93267]
[1744590469007,1.6616,1622.3,1621.7,4.93309]
[1744590469188,4.93217,1622.1,1621.6,4.93321]
[1744590469361,4.93218,1622.0,1621.5,4.93358]
[1744590469565,9.86464,1622.0,1621.5,4.93358]
[1744590469862,9.86522,1621.9,1621.4,11.14454593]
[1744590470091,1.6616,1621.8,1621.4,4.93382]
[1744590470401,4.93333,1621.7,1621.2,4.93445]
[1744590470565,4.93347,1621.6,1621.2,4.93445]
[1744590471069,4.9331,1621.7,1621.2,8.53184757]
[1744590471304,0.2,1622.5,1621.2,8.53184757]
[1744590471305,0.3971661,1623.2,1621.7,0.2]
[1744590471462,0.3971661,1623.2,1623.1,4.92883]
[1744590471797,0.3971661,1623.2,1623.0,4.92903]
[1744590472296,0.3971661,1623.2,1623.0,4.92908]
[1744590472522,0.3971661,1623.2,1622.8,4.92974]
[1744590472700,0.3971661,1623.2,1622.9,4.9910177]
[1744590472876,0.3971661,1623.2,1622.9,4.9909077]
[1744590473072,0.3971661,1623.2,1622.6,4.93023]
[1744590473281,6.59088,1623.0,1622.5,4.93066]
[1744590473601,4.92963,1622.9,1622.4,4.93096]
[1744590473759,4.92963,1622.9,1622.4,4.93075]
[1744590473969,2.813592,1623.0,1622.2,4.93138]
[1744590474191,0.3971661,1623.2,1622.0,4.93214]
[1744590474192,1.6616,1622.5,1622.0,4.93214]
[1744590474393,4.931,1622.4,1621.9,4.93246]
[1744590474956,4.93127,1622.3,1621.7,5.39387412]
[1744590475162,4.93127,1622.3,1621.7,4.93288]
[1744590475388,4.93207,1622.1,1621.6,4.93327]
[1744590475575,4.93207,1622.1,1621.4,4.93395]
[1744590475576,4.93247,1622.0,1621.4,4.93395]
[1744590475770,4.93247,1622.0,1621.2,8.66162394]
[1744590475771,1.6616,1622.1,1621.6,4.93313]
[1744590475978,6.59352,1622.1,1621.6,4.93313]
[1744590476180,4.93222,1622.0,1621.5,4.9337]
[1744590476389,9.86469,1622.0,1621.5,4.9337]
[1744590476584,4.93222,1622.0,1621.5,4.9337]
[1744590476786,9.86467,1622.0,1621.5,4.9337]
[1744590476984,4.93298,1621.8,1621.2,4.93461]
[1744590477294,4.93312,1621.7,1621.2,4.93461]
[1744590477493,6.084837,1622.0,1621.4,4.93381]
[1744590477494,4.93223,1622.0,1621.4,4.93381]
[1744590477698,4.93223,1622.0,1621.5,4.93347]
[1744590478209,4.93296,1621.8,1621.2,4.93448]
[1744590478508,1.6616,1621.6,1621.4,4.93393]
[1744590478710,1.6616,1621.6,1621.3,4.93424]
[1744590479014,1.6616,1621.9,1621.6,4.93327]
[1744590479380,1.6616,1621.9,1621.7,4.93297]
[1744590479600,1.6616,1621.9,1621.5,4.9337]
[1744590479777,6.59415,1621.9,1621.4,4.93399]
[1744590480311,4.93298,1621.8,1621.3,4.93429]
[1744590480611,4.93322,1621.7,1621.2,4.93446]
[1744590480912,4.93152,1622.3,1621.8,4.93279]
[1744590481098,1.6616,1622.2,1622.1,4.93187]
[1744590481296,6.59246,1622.5,1622.0,4.9321]
[1744590481489,6.59246,1622.5,1622.1,0.06163816]
[1744590481686,4.931,1622.4,1622.1,0.06163816]
[1744590481886,4.931,1622.4,1621.9,4.93228]
[1744590482089,4.931,1622.4,1622.0,4.93217]
[1744590482299,4.931,1622.4,1621.9,4.93228]
[1744590482300,9.86221,1622.4,1621.9,4.93228]
[1744590482501,4.93106,1622.4,1621.9,4.93228]
[1744590482797,4.93106,1622.4,1621.9,9.86458]
[1744590482977,4.93145,1622.3,1621.8,4.93276]
[1744590483174,4.93008,1622.7,1621.8,4.93276]
[1744590483175,0.5971661,1623.2,1623.0,0.55]
[1744590483378,0.3971661,1623.2,1623.1,7.92883]
[1744590483609,0.02,1623.4,1623.3,5.47823]
[1744590483811,6.45259,1624.2,1623.6,4.92705]
[1744590484012,2.172159,1624.2,1623.5,4.92761]
[1744590484214,6.45245,1624.2,1623.7,4.92678]
[1744590484401,1.5269,1624.2,1623.4,0.55]
[1744590484604,1.5269,1624.2,1623.9,4.92617]
[1744590484802,1.5269,1624.2,1624.0,0.06156644]
[1744590485035,1.5269,1624.2,1623.6,4.92731]
[1744590485209,1.5269,1624.2,1623.7,4.92676]
[1744590485542,6.45268,1624.2,1623.7,4.92697]
[1744590485693,6.45268,1624.2,1623.7,4.92687]
[1744590486029,4.92647,1623.9,1623.4,4.92791]
[1744590486315,7.590239,1624.2,1623.7,4.92674]
[1744590486478,4.92605,1624.1,1623.6,4.92731]
[1744590486683,1.5269,1624.2,1623.7,4.92677]
[1744590486880,4.92598,1624.1,1623.6,4.92723]
[1744590487322,4.92674,1623.8,1623.3,6.50176]
[1744590487520,9.85374,1623.8,1623.3,4.92806]
[1744590488307,4.92748,1623.6,1623.1,13.45495757]
[1744590488494,4.92767,1623.5,1623.1,4.9287]
[1744590488827,4.92767,1623.5,1622.9,4.92918]
[1744590488982,4.92848,1623.3,1622.8,8.52716757]
[1744590489318,4.92866,1623.2,1622.7,4.92985]
[1744590489715,6.45556,1623.2,1622.7,4.92985]
[1744590490620,6.45556,1623.2,1622.6,4.93035]
[1744590490621,4.92901,1623.1,1622.6,4.93035]
[1744590491632,4.92915,1623.0,1622.6,4.93035]
[1744590491822,4.92957,1622.9,1622.4,4.93081]
[1744590492026,4.92946,1622.9,1622.4,4.93076]
[1744590492227,4.92988,1622.8,1622.3,4.93109]
[1744590492415,4.92988,1622.8,1622.3,9.86215]
[1744590492721,4.93036,1622.6,1622.1,4.93161]
[1744590492929,1.5269,1622.3,1622.0,4.93217]
[1744590493290,1.5269,1622.3,1621.9,4.93224]
[1744590493291,6.45829,1622.3,1621.9,4.93224]
[1744590493527,4.93213,1622.1,1621.6,4.93328]
[1744590493824,4.93262,1621.9,1621.5,4.93366]
[1744590494026,4.93272,1621.9,1621.4,13.59853599]
[1744590494196,4.93219,1622.0,1621.5,4.93348]
[1744590494399,4.93252,1621.9,1621.5,4.93348]
[1744590494733,4.93252,1621.9,1621.5,4.93358]
[1744590494938,4.93163,1622.2,1621.6,0.06165669]
[1744590495094,4.93237,1622.0,1621.6,4.93331]
[1744590495296,1.5269,1622.3,1621.5,4.9337]
[1744590495535,4.9316,1622.2,1621.7,4.93279]
[1744590495723,6.45827,1622.3,1621.9,4.93226]
[1744590495927,1.5269,1622.3,1621.9,9.8646]
[1744590496249,0.46859693,1623.6,1623.3,4.92806]
[1744590496543,6.063939,1624.1,1623.6,4.92705]
[1744590496848,9.8533,1623.9,1623.4,8.52521757]
[1744590497024,4.92616,1624.0,1623.6,4.9273]
[1744590497230,0.02,1624.4,1623.7,4.98857483]
[1744590497429,4.92563,1624.2,1623.7,4.98857483]
[1744590497736,4.92616,1624.0,1623.5,4.92757]
[1744590497893,4.92616,1624.0,1623.5,4.92739]
[1744590498289,4.94492,1624.4,1623.7,4.92674]
[1744590498290,4.92551,1624.2,1623.7,4.92674]
[1744590498726,9.85205,1624.1,1623.6,4.92726]
[1744590498923,4.94491,1624.4,1623.4,9.07533757]
[1744590499147,6.45288,1624.1,1623.4,4.14744757]
[1744590499312,4.92612,1624.0,1623.6,4.92702]
[1744590499641,4.92644,1623.9,1623.5,4.92762]
[1744590499836,9.8525,1624.0,1623.5,4.92762]
[1744590500132,1.5269,1624.1,1623.6,0.0615747]
[1744590500331,4.92563,1624.2,1623.7,9.85369]
[1744590500658,0.02,1625.4,1624.8,4.92368]
[1744590500794,0.02,1625.4,1625.3,3.59744757]
[1744590501000,0.02,1625.4,1625.1,4.92273]
[1744590501303,0.02,1625.4,1625.3,4.92216]
[1744590501503,0.02,1625.4,1625.2,4.92238]
[1744590501709,4.942,1625.4,1624.9,4.92319]
[1744590502146,0.02,1625.4,1624.8,5.11687482]
[1744590502447,4.94186,1625.4,1624.8,10.04052482]
[1744590502598,4.92294,1625.1,1624.6,4.92428]
[1744590502998,9.84533,1625.2,1624.7,4.92395]
[1744590503295,4.92378,1624.8,1624.3,4.92504]
[1744590503494,1.5269,1625.3,1624.1,4.5737]
[1744590503801,4.92353,1624.9,1624.3,4.92494]
[1744590504025,4.92371,1624.8,1624.3,4.92494]
[1744590504555,0.02,1625.4,1625.0,5.47282]
[1744590504830,0.02,1625.4,1625.1,4.92252]
[1744590505043,4.92234,1625.3,1625.0,1.5737]
[1744590505198,4.94187,1625.4,1624.8,13.04039482]